[Event "FRA-chTW Top 12 2019"]
[Site "Vandoeuvre"]
[Date "2019.05.05"]
[Round "5.11"]
[White "Bismuth, Lea"]
[Black "Flear, Christine"]
[Result "1/2-1/2"]
[ECO "A45"]
[WhiteElo "1956"]
[BlackElo "2037"]
[Annotator "NA RC"]
[PlyCount "54"]
[EventDate "2019.05.02"]
[EventType "team-tourn"]
[EventCountry "FRA"]
[SourceTitle "playchess.com"]
[Source "ChessBase"]
[SourceQuality "1"]
[TimeControl "40/5400+30:1800+30"]

1. d4 {[%emt 0:00:00]} Nf6 {[%emt 0:00:18]} 2. Bf4 {[%emt 0:00:00]} c5 {[%emt 0:02:21]} 3. e3 {[%emt 0:01:02]} g6 {[%emt 0:01:46]} 4. Nc3 {[%emt 0:00:31]} Bg7 {[%emt 0:04:34]} 5. h4 {[%emt 0:01:29]} cxd4 {[%emt 0:11:41]} 6. exd4 {[%emt 0:01:05]} Qb6 {[%emt 0:01:36]} 7. Qd2 {[%emt 0:05:48]} Nh5 {[%emt 0:09:30]} 8. Be3 {[%emt 0:02:11]} d6 {[%emt 0:00:55]} 9. O-O-O {[%emt 0:02:53]} Qa5 {[%emt 0:04:10]} 10. Nge2 {[%emt 0:09:28]} Nc6 {[%emt 0:05:03]} 11. f3 {[%emt 0:01:22]} Bd7 {[%emt 0:06:23]} 12. g4 {[%emt 0:00:53]} Nf6 {[%emt 0:00:19]} 13. Ng3 {[%emt 0:02:25]} ({Better is} 13. Nf4 $16) 13... Nd5 {[%emt 0:05:03]} 14. Nge4 {[%emt 0:07:39]} Nxe3 {[%emt 0:03:31]} 15. Qxe3 {[%emt 0:00:09]} O-O-O {[%emt 0:01:02]} 16. Kb1 {[%emt 0:09:33]} h5 {[%emt 0:02:39]} 17. g5 {[%emt 0:01:06]} Kb8 {[%emt 0:02:09]} 18. Bc4 {[%emt 0:05:14]} Rhf8 $11 {[%emt 0:05:45]} 19. Nd5 {[%emt 0:03:17]} Rc8 {[%emt 0:05:02]} 20. Rd3 {[%emt 0:03:27]} Nb4 {[%emt 0:03:03]} 21. Nxb4 {[%emt 0:11:02]} Rxc4 {[%emt 0:00:06]} 22. c3 {[%emt 0:02:17]} Bf5 {[%emt 0:02:35]} 23. Qf4 {[%emt 0:02:29]} Rfc8 {[%emt 0:03:36]} 24. Nc2 {[%emt 0:03:49]} Qb6 {[%emt 0:04:50]} 25. Ka1 {[%emt 0:03:31]} Ra4 {[%emt 0:03:53]} 26. Rd2 {[%emt 0:05:17]} Ka8 {[%emt 0:06:03]} 27. Re1 {[%emt 0:03:26]} Qa5 {[%emt 0:02:00]} 1/2-1/2

[Event "FRA-chTW Top 12 2019"]
[Site "Vandoeuvre"]
[Date "2019.05.05"]
[Round "5.12"]
[White "Neuhauser, Salome"]
[Black "Stoll, Lucia"]
[Result "1-0"]
[ECO "C00"]
[WhiteElo "2073"]
[BlackElo "1404"]
[Annotator "NA RC"]
[PlyCount "65"]
[EventDate "2019.05.02"]
[EventType "team-tourn"]
[EventCountry "FRA"]
[SourceTitle "playchess.com"]
[Source "ChessBase"]
[SourceQuality "1"]
[TimeControl "40/5400+30:1800+30"]

1. Nf3 {[%emt 0:00:13]} d5 {[%emt 0:00:00]} 2. g3 {[%emt 0:00:10]} Nf6 {[%emt 0:00:02]} 3. Bg2 {[%emt 0:00:04]} e6 {[%emt 0:00:27]} 4. O-O {[%emt 0:00:06]} Be7 {[%emt 0:00:20]} 5. d3 {[%emt 0:01:09]} O-O {[%emt 0:00:42]} 6. Nbd2 {[%emt 0:00:05]} c5 {[%emt 0:00:09]} 7. e4 {[%emt 0:00:20]} Nc6 {[%emt 0:00:16]} 8. Re1 {[%emt 0:00:07]} b5 {[%emt 0:00:27]} 9. e5 {[%emt 0:00:11]} Nd7 {[%emt 0:00:22]} 10. Nf1 {[%emt 0:00:05]} Bb7 {[%emt 0:00:41]} 11. h4 {[%emt 0:00:33]} Qc7 {[%emt 0:00:37]} 12. Bf4 {[%emt 0:00:08]} Rfc8 {[%emt 0:00:43] C00: French: Unusual White 2nd moves} 13. N1h2 {[%emt 0:13:35]} (13. Ne3 Qd8 14. Ng4 Bf8 15. Bg5 Qe8 16. c3 h6 17. Bf4 a5 18. Qd2 b4 19. c4 Ne7 20. h5 {1-0 (59) Kuzubov,Y (2699)-Grischuk,A (2772) Riadh 2017}) 13... Qd8 {[%emt 0:00:36]} 14. Ng5 {[%emt 0:03:24]} Nf8 $146 {[%emt 0:01:26]} ({Predecessor:} 14... h6 15. Ngf3 b4 16. Qd2 a5 17. Ng4 Bf8 18. h5 a4 19. a3 bxa3 20. bxa3 {1-0 (32) Puranik,A (2536)-Logothetis,S (2210) Caleta 2019}) 15. Qh5 {[%emt 0:01:56]} Qe8 {[%emt 0:00:18]} 16. Qd1 {[%emt 0:02:43]} a5 {[%emt 0:01:39]} 17. Ng4 {[%emt 0:19:59]} Nd7 {[%emt 0:02:24]} 18. c3 {[%emt 0:08:05]} b4 {[%emt 0:01:06]} 19. c4 {[%emt 0:01:27]} dxc4 {[%emt 0:10:37]} 20. dxc4 {[%emt 0:00:53]} Nb6 {[%emt 0:15:12]} 21. Be4 {[%emt 0:01:49]} h6 {[%emt 0:06:33]} 22. Nh7 $16 {[%emt 0:17:44]} h5 {[%emt 0:07:09]} 23. Ngf6+ {[%emt 0:03:21]} gxf6 {[%emt 0:02:56]} 24. exf6 {[%emt 0:02:28]} Nd7 {[%emt 0:02:33]} 25. Qxh5 {[%emt 0:00:43]} Nxf6 {[%emt 0:05:13]} 26. Qg5+ {[%emt 0:00:32]} Kh8 {[%emt 0:00:17]} 27. Nxf6 {[%emt 0:00:14]} Bxf6 {[%emt 0:01:35]} 28. Qxf6+ {[%emt 0:00:06]} Kg8 {[%emt 0:00:09]} 29. Bh6 {[%emt 0:00:23]} Qf8 {[%emt 0:00:34]} 30. Qg5+ {[%emt 0:00:07]} Kh8 {[%emt 0:00:16]} 31. Bxf8 {[%emt 0:00:04]} Rxf8 {[%emt 0:00:17]} 32. Qh6+ {[%emt 0:00:05]} Kg8 {[%emt 0:00:06]} 33. Qh7# {[%emt 0:00:04]} 1-0

[Event "FRA-chTW Top 12 2019"]
[Site "Vandoeuvre"]
[Date "2019.05.05"]
[Round "5.12"]
[White "Moingt, Anne"]
[Black "Aggoune, Liza"]
[Result "1-0"]
[ECO "B42"]
[WhiteElo "2042"]
[BlackElo "1769"]
[Annotator "NA RC"]
[PlyCount "59"]
[EventDate "2019.05.02"]
[EventType "team-tourn"]
[EventCountry "FRA"]
[SourceTitle "playchess.com"]
[Source "ChessBase"]
[SourceQuality "1"]
[TimeControl "40/5400+30:1800+30"]

1. e4 {[%emt 0:00:00]} c5 {[%emt 0:00:00]} 2. Nf3 {[%emt 0:00:00]} e6 {[%emt 0:00:00]} 3. d4 {[%emt 0:00:00]} cxd4 {[%emt 0:00:00]} 4. Nxd4 {[%emt 0:00:03]} a6 {[%emt 0:00:00]} 5. Bd3 {[%emt 0:00:11]} Bc5 {[%emt 0:02:18]} 6. Nb3 {[%emt 0:01:02]} Be7 {[%emt 0:02:36]} 7. Nc3 {[%emt 0:01:07]} Nc6 {[%emt 0:01:07] B42: Sicilian: Kan Variation: 5 Bd3} 8. O-O {[%emt 0:03:12]} Nf6 {[%emt 0:10:01]} 9. f4 {[%emt 0:01:25]} d6 {[%emt 0:01:16]} 10. Qe2 {[%emt 0:04:02]} Qc7 {[%emt 0:02:47]} 11. Bd2 {[%emt 0:03:53]} b6 {[%emt 0:04:19]} (11... b5 12. a4 b4 13. Nd1 O-O 14. Nf2 e5 15. f5 Rd8 16. Bg5 Bb7 17. Rae1 d5 18. Bxf6 Bxf6 {1-0 (53) Najer,E (2663)-Korobov,A (2694) Czech Republic 2018}) 12. Rae1 {[%emt 0:02:21]} Bb7 {[%emt 0:14:29]} 13. a3 {[%emt 0:11:18]} O-O {[%emt 0:05:21]} 14. Kh1 {[%emt 0:00:22] [#]} Rfd8 $146 {[%emt 0:03:57]} ({Predecessor:} 14... g6 15. Rf3 Rfe8 16. Rh3 Bf8 17. Qf2 Bg7 18. Qh4 {0-1 (61) Zapata,A (2580)-Gurevich,I (2515) St Martin 1993}) 15. e5 {[%emt 0:03:53]} Nd7 {[%emt 0:03:25]} 16. exd6 {[%emt 0:07:22]} Bxd6 {[%emt 0:03:00]} 17. Ne4 {[%emt 0:00:23]} Be7 {[%emt 0:09:26]} 18. Bc3 {[%emt 0:01:01]} e5 {[%emt 0:04:28]} 19. Qh5 $18 {[%emt 0:07:14]} g6 {[%emt 0:06:40]} 20. Qh6 {[%emt 0:01:01]} Bf8 {[%emt 0:00:59]} 21. Qh3 {[%emt 0:00:29]} Bg7 {[%emt 0:03:10]} 22. Ng5 {[%emt 0:02:40]} Nf8 {[%emt 0:09:01]} 23. fxe5 {[%emt 0:02:26]} Bc8 {[%emt 0:04:48]} 24. Qh4 {[%emt 0:08:47]} Be6 {[%emt 0:01:59]} 25. Bc4 {[%emt 0:01:27]} Bxc4 {[%emt 0:05:38]} 26. Qxc4 {[%emt 0:00:05]} Rd7 {[%emt 0:01:07]} 27. e6 {[%emt 0:02:05]} Nxe6 {[%emt 0:01:03]} 28. Nxe6 {[%emt 0:00:06]} fxe6 {[%emt 0:00:09]} 29. Qxe6+ {[%emt 0:00:04]} Kh8 {[%emt 0:00:06]} 30. Qe8+ {[%emt 0:00:36]} 1-0